bitfinex/quotes_BTCUSD_20230831
["timestamp","ask_amount","ask_price","bid_price","bid_amount"]
[1693500721691,0.02,26353.0,26340.0,0.02]
[1693500721908,0.10974,26359.0,26342.0,0.4116]
[1693500721909,0.04,26358.0,26342.0,0.4116]
[1693500722118,0.02,26359.0,26352.0,0.3916]
[1693500722348,0.02,26359.0,26351.0,0.36768085]
[1693500722349,0.04,26357.0,26351.0,0.36768085]
[1693500722575,0.02,26361.0,26353.0,0.51475319]
[1693500722792,0.0813007,26366.0,26359.0,0.75928085]
[1693500723009,0.0813007,26366.0,26354.0,0.32]
[1693500723010,0.0813007,26366.0,26362.0,0.36768085]
[1693500723224,0.0813007,26366.0,26363.0,0.53867234]
[1693500723434,0.0813007,26366.0,26363.0,0.90635319]
[1693500723692,0.27888,26374.0,26365.0,0.75928085]
[1693500723693,0.1509,26374.0,26365.0,0.75928085]
[1693500723905,0.1509,26374.0,26363.0,0.14707234]
[1693500723906,0.02,26374.0,26370.0,0.3916]
[1693500724116,0.04,26376.0,26371.0,0.89152883]
[1693500724331,0.0203,26377.0,26372.0,0.46592852]
[1693500724541,0.0203,26377.0,26374.0,0.37677564]
[1693500724749,0.0203,26377.0,26375.0,0.89152883]
[1693500724998,0.02,26385.0,26375.0,0.89152883]
[1693500724999,0.13596,26388.0,26376.0,0.74445649]
[1693500725210,0.04,26386.0,26378.0,0.37677564]
[1693500725417,0.04,26386.0,26378.0,1.01068171]
[1693500725628,0.04,26386.0,26378.0,0.86360937]
[1693500726274,0.0403,26379.0,26375.0,0.04]
[1693500726483,0.02,26377.0,26375.0,0.40768085]
[1693500726693,0.11003368,26376.0,26375.0,0.04]
[1693500726914,0.11003368,26376.0,26365.0,0.2494]
[1693500726915,0.15003368,26376.0,26365.0,0.2494]
[1693500727161,0.15003368,26375.0,26366.0,0.36768085]
[1693500727374,0.02,26372.0,26366.0,0.42938894]
[1693500727634,0.08003368,26371.0,26366.0,0.42938894]
[1693500727862,0.0717,26378.0,26368.0,0.36768085]
[1693500728071,0.08003368,26378.0,26369.0,0.53475319]
[1693500728285,0.02,26378.0,26370.0,0.3916]
[1693500728497,0.07044,26377.0,26371.0,0.09263532]
[1693500728709,0.02,26378.0,26371.0,0.09263532]
[1693500729162,0.10003368,26378.0,26372.0,0.36768085]
[1693500729371,0.02,26376.0,26367.0,0.4116]
[1693500729593,0.02,26375.0,26367.0,0.3916]
[1693500729806,0.02,26373.0,26368.0,0.04533081]
[1693500730020,0.02,26375.0,26366.0,0.06170809]
[1693500730253,0.08003368,26374.0,26367.0,0.66663319]
[1693500731101,0.02,26373.0,26367.0,0.66663319]
[1693500731318,0.08003368,26373.0,26367.0,0.66663319]
[1693500731541,0.09889781,26373.0,26367.0,0.66663319]
[1693500732134,0.09889781,26373.0,26367.0,1.05823319]
[1693500732376,0.01886413,26377.0,26368.0,0.64460925]
[1693500732592,0.01886413,26378.0,26370.0,0.00113587]
[1693500732865,0.01886413,26378.0,26372.0,0.3916]
[1693500733077,0.0203,26379.0,26373.0,0.51475319]
[1693500733507,0.0203,26379.0,26373.0,0.90635319]
[1693500733721,0.0203,26379.0,26374.0,0.09074891]
[1693500733936,0.01886413,26377.0,26368.0,0.40593691]
[1693500734153,0.01886413,26377.0,26367.0,0.15188]
[1693500734154,0.01886413,26372.0,26367.0,0.15188]
[1693500734359,0.01886413,26372.0,26360.0,0.00113587]
[1693500734360,0.01886413,26368.0,26360.0,0.00113587]
[1693500734576,0.07032,26371.0,26360.0,0.00113587]
[1693500734793,0.07032,26371.0,26364.0,0.00613587]
[1693500734794,0.03717291,26371.0,26364.0,0.00613587]
[1693500735007,0.08003368,26371.0,26366.0,0.38728461]
[1693500735242,0.01386413,26374.0,26366.0,0.38728461]
[1693500735243,0.01386413,26374.0,26367.0,0.4431774]
[1693500735463,0.0603,26379.0,26367.0,0.4431774]
[1693500735464,0.0203,26379.0,26370.0,0.00613587]
[1693500735878,0.01386413,26378.0,26370.0,0.00613587]
[1693500736298,0.01386413,26377.0,26370.0,0.00613587]
[1693500736760,0.0203,26379.0,26370.0,0.00613587]
[1693500736970,0.10033368,26379.0,26372.0,0.38296922]
[1693500737180,0.0203,26379.0,26373.0,0.60452543]
[1693500737605,0.0203,26379.0,26373.0,0.99363052]
[1693500737835,0.0203,26379.0,26374.0,0.75065007]
[1693500738066,0.0203,26379.0,26377.0,0.38296922]
[1693500738285,0.0203,26379.0,26378.0,0.36768085]
[1693500739396,0.0203,26379.0,26378.0,0.51949985]
[1693500740257,0.0203,26379.0,26378.0,0.151819]
[1693500740472,0.03416413,26379.0,26378.0,0.151819]
[1693500740691,0.03416413,26379.0,26370.0,0.00613587]
[1693500740692,0.01386413,26378.0,26370.0,0.00613587]
[1693500740907,0.09389781,26378.0,26371.0,0.36768085]
[1693500741118,0.09389781,26378.0,26372.0,0.03738167]
[1693500741336,0.09389781,26378.0,26373.0,0.36768085]
[1693500741555,0.0203,26379.0,26373.0,0.52088906]
[1693500741790,0.1772,26385.0,26378.0,0.3916]
[1693500742007,0.02,26385.0,26379.0,0.98289486]
[1693500743386,0.02,26385.0,26379.0,1.05573486]
[1693500743832,0.10003368,26385.0,26379.0,1.05573486]
[1693500744470,0.02,26385.0,26380.0,0.75928085]
[1693500744691,0.02,26388.0,26382.0,0.76541672]
[1693500744898,0.02,26388.0,26384.0,0.3916]
[1693500745113,0.02,26387.0,26385.0,0.51475319]
[1693500745332,0.02,26387.0,26385.0,0.36768085]
[1693500745546,0.02,26387.0,26383.0,0.09124891]
[1693500745766,0.02,26387.0,26384.0,0.36768085]
[1693500746199,0.02,26388.0,26384.0,0.36768085]
[1693500746407,0.02,26387.0,26384.0,0.51475319]
[1693500746619,0.02,26387.0,26384.0,0.36768085]
[1693500746907,0.02,26384.0,26379.0,0.07284]
[1693500747109,0.03717291,26388.0,26382.0,0.02]
[1693500747328,0.0639,26384.0,26382.0,0.02]
[1693500747539,0.14727291,26387.0,26383.0,0.06]
[1693500747749,0.2658,26386.0,26382.0,0.02]
[1693500747961,0.2658,26386.0,26379.0,0.09284]
[1693500747962,0.08892,26383.0,26379.0,0.09284]
[1693500748198,0.38768085,26383.0,26377.0,0.02]
[1693500748405,0.15399291,26382.0,26377.0,0.02]
[1693500748617,0.15399291,26382.0,26379.0,0.02]
[1693500748831,0.02,26387.0,26379.0,0.06276809]
[1693500749045,0.02,26387.0,26380.0,0.14707234]
[1693500749261,0.02,26385.0,26380.0,0.14707234]
[1693500749501,0.02,26385.0,26379.0,0.53951085]
[1693500749708,0.02,26385.0,26379.0,0.68658319]
[1693500749944,0.36768085,26385.0,26379.0,0.17183]
[1693500750147,0.40485376,26384.0,26376.0,0.02]
[1693500750357,0.49907376,26384.0,26377.0,0.02]
[1693500750568,0.11487291,26384.0,26377.0,0.53475319]
[1693500750805,0.14773262,26386.0,26377.0,0.53475319]
[1693500750806,0.02,26386.0,26379.0,0.02]
[1693500750984,0.02,26386.0,26380.0,0.14707234]
[1693500751219,0.38768085,26386.0,26380.0,0.14707234]
[1693500751427,0.36768085,26385.0,26380.0,0.14707234]
[1693500751635,0.36768085,26385.0,26379.0,0.02]
[1693500751847,0.36768085,26385.0,26379.0,0.14707234]
[1693500752069,0.02,26386.0,26379.0,0.14707234]
[1693500752284,0.02,26382.0,26375.0,0.02]
[1693500752501,0.45006085,26384.0,26375.0,0.02]
[1693500752712,0.02,26384.0,26376.0,0.51475319]
[1693500752928,0.02,26383.0,26376.0,0.51475319]
[1693500753140,0.12773262,26386.0,26382.0,0.02]
[1693500753379,0.05717291,26389.0,26383.0,0.14707234]
[1693500753380,0.31804288,26389.0,26383.0,0.14707234]
[1693500753599,0.68572373,26389.0,26383.0,0.14707234]
[1693500753818,0.72289664,26389.0,26383.0,0.14707234]
[1693500754030,0.70289664,26389.0,26383.0,0.14707234]
[1693500754236,0.53258638,26389.0,26383.0,0.14707234]
[1693500755116,0.1687153,26390.0,26383.0,0.14707234]
[1693500755352,0.53639615,26390.0,26383.0,0.14707234]
[1693500755769,0.38768085,26390.0,26383.0,0.14707234]
[1693500756014,0.40485376,26389.0,26383.0,0.14707234]
[1693500756234,0.48459376,26389.0,26380.0,0.02]
[1693500756440,0.02,26385.0,26376.0,0.02]
[1693500756650,0.36768085,26384.0,26376.0,0.02]
[1693500756859,0.40485376,26384.0,26376.0,0.02]
[1693500757069,0.48993376,26384.0,26376.0,0.02]
[1693500757296,0.46887376,26384.0,26376.0,0.16707234]
[1693500757512,0.52,26386.0,26377.0,0.56146042]
[1693500757513,0.0864423,26386.0,26377.0,0.56146042]
[1693500757935,0.0864423,26386.0,26379.0,0.02]
[1693500758181,0.57356,26389.0,26379.0,0.02]
[1693500758182,0.0864423,26387.0,26380.0,0.55475319]
[1693500758384,0.0864423,26389.0,26381.0,0.04]
[1693500758633,0.647072,26392.0,26383.0,0.04]
[1693500758634,0.02,26387.0,26383.0,0.04]
[1693500758840,0.02,26386.0,26385.0,0.02]
[1693500759050,0.02,26387.0,26385.0,0.04]
[1693500759267,0.02,26387.0,26386.0,0.04]
[1693500759703,0.02,26387.0,26385.0,0.04]
[1693500759930,0.02,26387.0,26386.0,0.40768085]
[1693500760558,0.02,26387.0,26386.0,0.44768085]
[1693500760774,0.0864423,26393.0,26390.0,0.02]
[1693500760775,0.1064423,26393.0,26390.0,0.02]
[1693500760998,0.02,26393.0,26391.0,0.16707234]
[1693500761463,0.02,26394.0,26391.0,0.16707234]
[1693500761667,0.02,26394.0,26393.0,0.02]
[1693500761874,0.02,26394.0,26393.0,0.01616776]
[1693500762395,0.02,26396.0,26394.0,0.01616776]
[1693500762660,0.03040769,26397.0,26394.0,0.01616776]
[1693500762661,0.03040769,26397.0,26396.0,0.01616776]
[1693500763100,0.18289931,26398.0,26396.0,0.01616776]
[1693500763314,0.16257923,26398.0,26396.0,0.01616776]
[1693500763524,0.02,26397.0,26396.0,0.01616776]
[1693500763732,0.01966419,26397.0,26396.0,0.01616776]
[1693500765078,0.09612862,26397.0,26396.0,0.01616776]
[1693500765484,0.01966419,26397.0,26396.0,0.01616776]
[1693500765683,0.22558425,26398.0,26396.0,0.01616776]
[1693500765902,0.22558425,26398.0,26396.0,0.38384861]
[1693500766126,0.01966419,26397.0,26396.0,0.01616776]
[1693500766320,0.14944732,26397.0,26393.0,0.05616776]
[1693500766523,0.01966419,26397.0,26396.0,0.01616776]
[1693500767938,0.01966419,26397.0,26396.0,0.05616776]
[1693500768362,0.19270854,26397.0,26396.0,0.05616776]
[1693500768760,0.32266046,26397.0,26396.0,0.05616776]
[1693500768998,0.01966419,26394.0,26391.0,0.01616776]
[1693500769204,0.01966419,26394.0,26391.0,0.05616776]
[1693500769205,0.01966419,26392.0,26391.0,0.05616776]
[1693500769631,0.12994367,26394.0,26391.0,0.42384861]
[1693500769843,0.02410913,26395.0,26394.0,0.09616776]
[1693500770050,0.02410913,26395.0,26394.0,0.63092095]
[1693500770265,0.23588268,26398.0,26397.0,0.11616776]
[1693500770266,0.10593901,26398.0,26397.0,0.11616776]
[1693500770507,0.10593901,26398.0,26397.0,0.63092095]
[1693500770710,0.049782,26398.0,26395.0,0.04]
[1693500770912,0.01966419,26397.0,26393.0,0.05616776]
[1693500771125,0.01966419,26397.0,26396.0,0.05616776]
[1693500771329,0.01958219,26397.0,26396.0,0.05616776]
[1693500771542,0.01958219,26397.0,26394.0,0.05616776]
[1693500771745,0.01958219,26397.0,26393.0,0.05616776]
[1693500771746,0.0567551,26397.0,26393.0,0.05616776]
[1693500771959,0.01958219,26392.0,26391.0,0.05616776]
[1693500772169,0.01958219,26393.0,26392.0,0.01616776]
[1693500772372,0.0567551,26392.0,26391.0,0.05616776]
[1693500772576,0.03717291,26392.0,26391.0,0.05616776]
[1693500772780,0.0567551,26392.0,26391.0,0.05616776]
[1693500772991,0.01958219,26392.0,26391.0,0.05616776]
[1693500773817,0.01958219,26393.0,26392.0,0.05616776]
[1693500774029,0.01958219,26393.0,26392.0,0.42384861]
[1693500774236,0.01958219,26394.0,26393.0,0.05616776]
[1693500775310,0.08695491,26398.0,26397.0,0.01616776]
[1693500775311,0.06936419,26398.0,26397.0,0.01616776]
[1693500775526,0.06936419,26398.0,26397.0,0.1632401]
[1693500775756,0.00383224,26403.0,26402.0,4.1474538]
[1693500775970,0.09022343,26403.0,26402.0,3.5773498]
[1693500776184,0.09022343,26403.0,26402.0,3.43027746]
[1693500776185,0.18668678,26403.0,26402.0,3.43027746]
[1693500777240,0.13794559,26403.0,26402.0,3.43027746]
[1693500777504,1.02562644,26403.0,26402.0,3.43027746]
[1693500777707,1.99706644,26403.0,26402.0,2.98236018]
[1693500777925,1.82298644,26403.0,26402.0,2.98236018]
[1693500778137,0.10077268,26403.0,26402.0,2.98236018]
[1693500778341,0.16605268,26403.0,26402.0,2.98236018]
[1693500778547,1.15318644,26403.0,26402.0,2.98236018]
[1693500778770,1.19014644,26403.0,26402.0,2.98236018]
[1693500778990,0.63622559,26403.0,26402.0,2.98236018]
[1693500779200,0.16797268,26403.0,26402.0,2.98236018]
[1693500779410,0.10077268,26403.0,26402.0,2.98236018]
[1693500779614,0.12431453,26403.0,26402.0,2.98236018]
[1693500779816,0.12814677,26403.0,26402.0,2.98236018]
[1693500780020,0.12431453,26403.0,26402.0,2.98236018]
[1693500780244,0.53300053,26403.0,26402.0,2.98236018]
[1693500780443,2.0281437,26403.0,26402.0,2.98236018]
[1693500780656,2.0504637,26403.0,26402.0,2.98236018]
[1693500780858,2.0065437,26403.0,26402.0,2.98236018]
[1693500781066,1.1082437,26403.0,26402.0,2.98236018]
[1693500781318,1.1245737,26403.0,26402.0,2.98236018]
[1693500781518,1.0432737,26403.0,26402.0,2.98236018]
[1693500781721,1.1103537,26403.0,26402.0,2.98236018]
[1693500781949,1.5767937,26403.0,26402.0,2.98236018]
[1693500782149,1.5767937,26403.0,26402.0,1.02015047]
[1693500782150,3.9717776,26403.0,26402.0,1.02015047]
[1693500782362,2.9471326,26403.0,26402.0,1.02015047]
[1693500782570,2.9209726,26403.0,26402.0,1.02015047]
[1693500782778,3.0883001,26403.0,26402.0,1.02015047]
[1693500782958,3.0406601,26403.0,26402.0,1.02015047]
[1693500783189,3.0407801,26403.0,26402.0,1.02015047]
[1693500783395,1.47642079,26403.0,26402.0,1.02015047]
[1693500783608,1.47750079,26403.0,26402.0,1.02015047]
[1693500783819,0.68524855,26403.0,26402.0,1.02015047]
[1693500784049,0.9035417,26403.0,26402.0,1.02015047]
[1693500784258,0.90330807,26403.0,26402.0,1.02015047]
[1693500784477,0.90084807,26403.0,26402.0,1.02015047]
[1693500784683,0.59251247,26403.0,26402.0,1.02015047]
[1693500784894,0.63806295,26403.0,26402.0,1.02015047]
[1693500785172,0.70496295,26403.0,26402.0,1.02015047]
[1693500785333,0.70568295,26403.0,26402.0,1.02015047]
[1693500785559,0.96604247,26403.0,26402.0,1.02015047]
[1693500785776,0.85486836,26403.0,26402.0,1.02015047]
[1693500785979,0.27038799,26403.0,26402.0,1.06015047]
[1693500786193,0.34119156,26403.0,26402.0,1.06015047]
[1693500786394,0.57878114,26403.0,26402.0,1.02015047]
[1693500786605,0.77502464,26403.0,26402.0,1.02015047]
[1693500786819,0.38280379,26403.0,26402.0,1.02015047]
[1693500787031,0.12438354,26403.0,26402.0,1.22339057]
[1693500787239,0.12438354,26403.0,26402.0,1.07631823]
[1693500787240,0.12438027,26403.0,26402.0,1.07631823]
[1693500787443,0.03765,26403.0,26402.0,1.07631823]
[1693500788790,0.12438027,26403.0,26402.0,1.02015047]
[1693500788992,0.16774042,26403.0,26402.0,1.02015047]
[1693500789225,0.12440276,26403.0,26402.0,1.02015047]
[1693500789428,0.12440276,26403.0,26402.0,1.09631823]
[1693500790153,0.03765,26403.0,26402.0,1.09631823]
[1693500790978,0.03765,26403.0,26402.0,1.48399908]
[1693500791420,0.0203,26406.0,26405.0,0.11616776]
[1693500791641,0.0203,26406.0,26405.0,0.48384861]
[1693500792241,0.0145,26406.0,26405.0,0.48384861]
[1693500792442,0.0145,26406.0,26405.0,0.71354861]
[1693500792643,0.0145,26406.0,26405.0,0.94521761]
[1693500792819,0.08678512,26410.0,26409.0,0.09616776]
[1693500793029,0.08678512,26410.0,26409.0,0.61092095]
[1693500793030,0.05927006,26410.0,26409.0,0.61092095]
[1693500793239,0.0203,26412.0,26409.0,0.46384861]
[1693500793438,0.0203,26412.0,26408.0,0.02]
[1693500793439,0.0203,26412.0,26411.0,0.04]
[1693500793651,0.16635492,26412.0,26411.0,0.07616776]
[1693500794311,0.0795698,26412.0,26411.0,0.07616776]
[1693500794485,0.06183261,26413.0,26411.0,0.07616776]
[1693500794710,0.17568325,26414.0,26413.0,0.04]
[1693500794925,0.06137852,26414.0,26413.0,0.04]
[1693500795154,0.23494877,26414.0,26413.0,0.04]
[1693500795430,0.06137852,26414.0,26413.0,0.04]
[1693500795687,0.06137852,26414.0,26409.0,0.096168]
[1693500795688,0.00455796,26412.0,26409.0,0.076168]
[1693500795936,0.82193657,26411.0,26407.0,0.04]
[1693500796191,0.05926552,26410.0,26407.0,0.04]
[1693500796387,0.078,26412.0,26411.0,0.04]
[1693500796568,0.39226231,26414.0,26411.0,0.04]
[1693500796569,0.002113,26414.0,26411.0,0.04]
[1693500796791,0.05426683,26413.0,26411.0,0.18707234]
[1693500796994,0.05426683,26413.0,26411.0,0.04]
[1693500797554,0.002113,26414.0,26411.0,0.04]
[1693500797754,0.0592672,26413.0,26411.0,0.04]
[1693500797960,0.002113,26414.0,26412.0,0.0566098]
[1693500798132,0.002113,26414.0,26413.0,0.04]
[1693500798532,0.06137792,26414.0,26413.0,0.04]
[1693500799138,0.06137792,26414.0,26412.0,0.0366098]
[1693500799139,0.50423877,26414.0,26409.0,0.04]
[1693500799343,0.46411868,26413.0,26411.0,0.04]
[1693500799541,0.05926492,26412.0,26411.0,0.04]
[1693500799745,0.12868492,26412.0,26411.0,0.04]
[1693500799930,0.05926492,26412.0,26411.0,0.04]
[1693500800127,0.17345053,26414.0,26411.0,0.56]
[1693500800390,0.42695079,26413.0,26411.0,0.56]
[1693500800599,0.05926994,26412.0,26411.0,0.56]
[1693500800814,0.07314,26412.0,26411.0,0.56]
[1693500801018,0.08898,26414.0,26411.0,0.56]
[1693500801223,0.07134,26415.0,26411.0,0.56]
[1693500801419,0.07134,26415.0,26409.0,0.06]
[1693500801420,0.65675021,26414.0,26409.0,0.06]
[1693500801639,0.05926936,26413.0,26409.0,0.06]
[1693500801837,0.36768085,26412.0,26409.0,0.06]
[1693500802074,0.08226,26412.0,26409.0,0.06]
[1693500802339,0.06552,26411.0,26409.0,0.06]
[1693500802539,0.36768085,26411.0,26409.0,0.06]
[1693500802753,0.40485376,26411.0,26408.0,0.56]
[1693500803589,0.5,26407.0,26402.0,1.20715047]
[1693500803806,0.3916,26403.0,26402.0,1.20715047]
[1693500804041,0.75928085,26403.0,26402.0,1.20715047]
[1693500804269,0.79645376,26403.0,26402.0,1.20715047]
[1693500804692,0.89923376,26403.0,26402.0,1.20715047]
[1693500804902,1.66207658,26403.0,26402.0,1.19567576]
[1693500805124,1.66099658,26403.0,26402.0,1.19567576]
[1693500805352,1.66005658,26403.0,26402.0,1.19567576]
[1693500805586,1.68920284,26403.0,26402.0,1.19567576]
[1693500805794,1.59280452,26403.0,26402.0,1.19567576]
[1693500806014,1.88448911,26403.0,26402.0,1.19567576]
[1693500806236,1.88478911,26403.0,26402.0,1.19567576]
[1693500806450,1.71739858,26403.0,26402.0,1.19567576]
[1693500806679,1.68973858,26403.0,26402.0,1.19567576]
[1693500806899,1.69801858,26403.0,26402.0,1.19567576]
[1693500807103,1.69759858,26403.0,26402.0,1.19567576]
[1693500807311,1.70155858,26403.0,26402.0,1.19567576]
[1693500807536,1.70065858,26403.0,26402.0,1.19567576]
[1693500807744,1.65084204,26403.0,26402.0,1.19567576]
[1693500808000,1.69195858,26403.0,26402.0,1.19567576]
[1693500808205,1.62235858,26403.0,26402.0,1.19567576]
[1693500808419,1.55922759,26403.0,26402.0,1.19567576]
[1693500808638,0.497939,26403.0,26402.0,1.9227481]
[1693500808848,0.08684004,26405.0,26403.0,0.08]
[1693500809054,0.36768085,26404.0,26403.0,0.22707234]
[1693500809287,0.36768085,26404.0,26403.0,0.08]
[1693500809727,1.72125191,26404.0,26402.0,1.19567576]
[1693500809973,0.52186544,26403.0,26402.0,1.19567576]
[1693500810178,0.98600802,26403.0,26402.0,1.19567576]
[1693500811014,0.3916,26399.0,26395.0,0.5]
[1693500811227,1.48908085,26396.0,26393.0,0.06]
[1693500811649,1.25928085,26396.0,26394.0,0.56]
[1693500811865,0.46742022,26398.0,26397.0,0.576]
[1693500811866,0.08683154,26398.0,26397.0,0.576]
[1693500812073,0.46275851,26400.0,26399.0,0.076]
[1693500812074,0.50617427,26400.0,26399.0,0.076]
[1693500812281,0.28909542,26400.0,26399.0,0.22307234]
[1693500812492,0.28909542,26400.0,26399.0,0.076]
[1693500812706,0.28909542,26400.0,26399.0,0.24307234]
[1693500812911,0.28909542,26400.0,26399.0,0.38307234]
[1693500813138,0.28909542,26400.0,26399.0,0.60368085]
[1693500814858,0.08683154,26406.0,26405.0,0.596]
[1693500815064,0.21712389,26408.0,26407.0,0.096]
[1693500815273,0.21712795,26408.0,26407.0,0.24307234]
[1693500815481,0.08688064,26408.0,26407.0,0.24307234]
[1693500815729,0.21712795,26408.0,26407.0,0.096]
[1693500815934,0.13024731,26408.0,26407.0,0.096]
[1693500816155,0.53510107,26408.0,26405.0,0.5]
[1693500816376,0.52191012,26406.0,26405.0,0.576]
[1693500816583,1.10042697,26406.0,26405.0,0.576]
[1693500816795,1.02939891,26406.0,26405.0,0.5]
[1693500817222,1.24647777,26406.0,26405.0,0.5]
[1693500817431,1.32261468,26406.0,26402.0,0.576]
[1693500817639,0.47846543,26403.0,26402.0,0.576]
[1693500817847,0.84614628,26403.0,26402.0,0.576]
[1693500818059,0.84614628,26403.0,26395.0,0.2543]
[1693500818060,1.15977106,26403.0,26395.0,0.2543]
[1693500818277,1.15977106,26403.0,26392.0,0.08]
[1693500818278,0.97846014,26400.0,26399.0,0.5]
[1693500818503,1.44885935,26400.0,26399.0,0.5]
[1693500818717,1.12200602,26400.0,26399.0,0.5]
[1693500818935,0.9545429,26400.0,26399.0,0.5]
[1693500819137,1.08483311,26400.0,26399.0,0.5]
[1693500819338,0.71715226,26400.0,26399.0,0.5]
[1693500819608,0.08686205,26400.0,26399.0,0.5]
[1693500819829,0.63029021,26400.0,26399.0,0.5]
[1693500820229,0.99797106,26400.0,26399.0,0.5]
[1693500820434,0.49797106,26400.0,26399.0,0.5]
[1693500820844,0.60070361,26400.0,26399.0,0.5]
[1693500821476,0.23302276,26400.0,26399.0,0.576]
[1693500821680,0.21730929,26400.0,26399.0,0.576]
[1693500821882,0.08692461,26400.0,26399.0,0.576]
[1693500822083,0.08692461,26400.0,26399.0,0.596]
[1693500822287,0.08692461,26401.0,26399.0,0.596]
[1693500822725,0.08692461,26402.0,26399.0,0.596]
[1693500822995,0.08692461,26402.0,26401.0,0.076]
[1693500822996,0.60867886,26402.0,26401.0,0.076]
[1693500823247,0.7051421,26402.0,26401.0,0.076]
[1693500823565,0.27636919,26402.0,26401.0,0.076]
[1693500823796,0.45023234,26402.0,26401.0,0.076]
[1693500823999,0.23315348,26402.0,26401.0,0.076]
[1693500824205,0.17386315,26402.0,26401.0,0.076]
[1693500824413,0.17386315,26402.0,26399.0,0.52]
[1693500824414,1.24668508,26402.0,26399.0,0.576]
[1693500824642,0.08691177,26400.0,26399.0,0.576]
[1693500824870,0.30419121,26400.0,26399.0,0.576]
[1693500825079,0.21727989,26400.0,26399.0,0.576]
[1693500825283,0.08691223,26400.0,26399.0,0.596]
[1693500825699,0.30419121,26401.0,26400.0,0.096]
[1693500825700,0.21727989,26401.0,26400.0,0.096]
[1693500825931,0.21727989,26402.0,26400.0,0.096]
[1693500826157,0.17382355,26403.0,26398.0,0.02]
[1693500826158,0.21727989,26403.0,26402.0,0.596]
[1693500826366,0.13036766,26403.0,26402.0,0.596]
[1693500826575,0.13036766,26403.0,26402.0,0.74307234]
[1693500826576,0.08692787,26403.0,26402.0,0.74307234]
[1693500826780,0.08692787,26404.0,26403.0,0.096]
[1693500827827,0.08692787,26405.0,26404.0,0.116]
[1693500828034,0.08692787,26406.0,26404.0,0.136]
[1693500828244,0.08692787,26406.0,26405.0,0.616]
[1693500828452,0.08692787,26407.0,26406.0,0.096]
[1693500829087,0.13036766,26407.0,26406.0,0.096]
[1693500829302,0.13036766,26407.0,26402.0,0.5]
[1693500829303,0.5,26406.0,26402.0,0.5]
[1693500829511,0.5,26406.0,26402.0,0.556]
[1693500829512,0.7953111,26403.0,26402.0,0.556]
[1693500829763,1.26574736,26403.0,26402.0,0.576]
[1693500829987,1.26574736,26403.0,26398.0,0.576]
[1693500829988,0.8916,26400.0,26398.0,0.576]
[1693500830211,0.60083977,26399.0,26398.0,0.576]
[1693500830435,0.13041352,26399.0,26398.0,0.576]
[1693500830654,0.55738493,26399.0,26398.0,0.576]
[1693500830872,0.76843791,26399.0,26398.0,0.576]
[1693500831111,0.6380256,26399.0,26398.0,0.576]
[1693500831733,0.73126111,26399.0,26398.0,0.576]
[1693500831933,0.55737983,26399.0,26398.0,0.576]
[1693500832052,0.49808927,26399.0,26398.0,0.576]
[1693500832264,0.55737954,26399.0,26398.0,0.576]
[1693500832490,0.73126082,26399.0,26398.0,0.576]
[1693500832891,1.03592272,26399.0,26394.0,0.576]
[1693500833094,0.8916,26394.0,26391.0,0.52]
[1693500833325,0.3916,26392.0,26391.0,0.51990129]
[1693500833526,0.36768085,26393.0,26392.0,0.076]
[1693500833741,1.10877969,26394.0,26393.0,0.076]
[1693500833742,0.08687073,26394.0,26393.0,0.076]
[1693500833948,0.06687073,26394.0,26393.0,0.096]
[1693500834151,0.13030896,26396.0,26395.0,0.57590129]
[1693500834356,0.6008081,26396.0,26395.0,0.57590129]
[1693500834995,0.45040981,26396.0,26395.0,0.57590129]
[1693500835204,0.05930121,26396.0,26395.0,0.57590129]
[1693500835410,0.60415574,26398.0,26396.0,0.076]
[1693500835611,0.42697771,26397.0,26396.0,0.076]
[1693500835814,0.55730741,26397.0,26396.0,0.076]
[1693500836017,1.12273345,26397.0,26396.0,0.076]
[1693500836221,1.15990636,26397.0,26396.0,0.076]
[1693500836628,0.76830636,26397.0,26396.0,0.076]
[1693500836831,0.55730741,26397.0,26396.0,0.076]
[1693500837239,0.99810636,26397.0,26395.0,0.51990129]
[1693500837457,0.18957629,26396.0,26395.0,0.51990129]
[1693500837663,0.18957629,26396.0,26395.0,0.57590129]
[1693500837863,0.05929686,26396.0,26395.0,0.57590129]
[1693500838280,0.05929686,26396.0,26395.0,0.59590129]
[1693500838485,0.16118039,26399.0,26395.0,0.59590129]
[1693500838669,0.05929133,26398.0,26397.0,0.076]
[1693500838917,0.05929133,26398.0,26397.0,0.096]
[1693500839131,0.39559141,26401.0,26399.0,0.57590129]
[1693500839338,0.18957119,26400.0,26399.0,0.57590129]
[1693500839540,0.2267441,26400.0,26399.0,0.57590129]
[1693500839740,0.40057014,26400.0,26399.0,0.57590129]
[1693500839944,0.2267441,26400.0,26399.0,0.57590129]
[1693500840148,0.40057014,26400.0,26399.0,0.57590129]
[1693500840358,0.2267441,26400.0,26399.0,0.59590129]
[1693500840570,0.05929176,26400.0,26399.0,0.59590129]
[1693500840992,0.36339723,26400.0,26399.0,0.57590129]
[1693500841203,1.03585517,26400.0,26399.0,0.57590129]
[1693500841408,1.07302808,26400.0,26399.0,0.57590129]
[1693500841626,2.47302808,26400.0,26399.0,0.49990129]
[1693500841840,2.47302808,26400.0,26389.0,0.660574]
[1693500841841,0.8916,26394.0,26393.0,0.49990129]
[1693500842050,1.49233507,26394.0,26393.0,0.47990129]
[1693500842469,1.23105804,26394.0,26393.0,0.55590129]
[1693500842678,1.09446835,26394.0,26393.0,0.55590129]
[1693500843514,0.98606835,26394.0,26393.0,0.55590129]
[1693500843715,0.98606835,26394.0,26393.0,0.57590129]
[1693500843716,0.55729544,26394.0,26393.0,0.57590129]
[1693500844567,0.51382639,26394.0,26393.0,0.57590129]
[1693500844845,0.98606835,26394.0,26393.0,0.55590129]
[1693500845075,1.37294859,26394.0,26387.0,0.47990129]
[1693500845315,1.37294859,26394.0,26382.0,0.55590129]
[1693500845316,0.3916,26386.0,26382.0,0.55590129]
[1693500845531,0.3916,26386.0,26384.0,0.02]
[1693500845532,1.39748085,26385.0,26384.0,0.02]
[1693500845743,1.47193855,26385.0,26384.0,0.02]
[1693500845956,1.50911146,26385.0,26384.0,0.02]
[1693500846210,1.98756824,26385.0,26384.0,0.02]